bitfinex-derivatives/quotes_SOLF0:USTF0_20251006
["timestamp","ask_amount","ask_price","bid_price","bid_amount"]
[1759781613183,5.5532,235.27,235.17,7.47]
[1759781615786,5.5532,235.27,235.17,11.2946]
[1759781616288,1.73,235.27,235.17,11.2946]
[1759781617089,3.8233,235.26,235.17,11.2946]
[1759781618991,3.8235,235.25,235.17,7.47]
[1759781619187,3.03507947,235.28,235.17,7.47]
[1759781619390,1.73,235.26,235.17,7.47]
[1759781619786,1.73,235.31,235.17,7.47]
[1759781620296,1.73,235.31,235.19,7.79]
[1759781620497,1.73,235.3,235.19,7.79]
[1759781621190,3.8232,235.27,235.19,7.79]
[1759781621390,4.76507947,235.26,235.19,7.79]
[1759781622195,4.76507947,235.26,235.16,11.6148]
[1759781622688,3.8235,235.25,235.16,11.6148]
[1759781623292,3.8237,235.24,235.16,11.6148]
[1759781625200,5.5533,235.26,235.16,11.6148]
[1759781625606,5.5533,235.26,235.16,7.79]
[1759781627711,3.8235,235.25,235.16,7.79]
[1759781629100,3.8237,235.24,235.16,7.79]
[1759781629614,1.73,235.26,235.16,7.79]
[1759781630013,3.03507947,235.24,235.16,7.79]
[1759781630315,1.74,235.23,235.16,7.79]
[1759781630810,12.71,235.23,234.99,7.14607223]
[1759781631004,1.94776949,235.0,234.88,7.8]
[1759781631207,1.74,235.02,234.88,7.8]
[1759781631208,4.32970304,234.99,234.88,7.8]
[1759781631404,1.94776949,234.96,234.88,7.8]
[1759781631614,1.94776949,234.93,234.88,7.8]
[1759781631815,5.39336009,234.92,234.8,7.8]
[1759781632009,5.38433666,234.91,234.8,12.45252073]
[1759781632208,1.06386824,234.9,234.81,7.8]
[1759781632409,1.94776949,234.93,234.81,7.8]
[1759781633015,1.94776949,234.9,234.81,7.8]
[1759781633314,1.94776949,234.9,234.82,7.8]
[1759781634216,1.94776949,234.87,234.79,7.8]
[1759781635217,1.94776949,234.84,234.78,53.74]
[1759781635716,6.25122873,234.84,234.78,53.74]
[1759781635917,1.94776949,234.84,234.78,53.74]
[1759781636118,4.30345924,234.83,234.78,45.94]
[1759781636413,4.30345924,234.82,234.79,7.8]
[1759781636615,1.94776949,234.84,234.79,7.8]
[1759781636812,4.29770415,234.83,234.79,7.8]
[1759781637012,4.29770415,234.82,234.78,45.94]
[1759781637308,4.29340974,234.81,234.79,7.8]
[1759781637514,1.94776949,234.88,234.79,7.8]
[1759781637712,1.94776949,234.86,234.79,7.8]
[1759781637911,4.29316331,234.85,234.79,7.8]
[1759781638105,4.29316331,234.84,234.76,7.8]
[1759781638311,4.29316331,234.83,234.76,7.8]
[1759781638618,4.29316331,234.85,234.76,7.8]
[1759781638912,4.29316331,234.84,234.76,7.8]
[1759781639216,4.29316331,234.83,234.76,7.8]
[1759781639416,1.94776949,234.86,234.76,7.8]
[1759781639417,4.29316331,234.82,234.76,7.8]
[1759781639615,1.94776949,234.86,234.76,7.8]
[1759781639817,4.16051971,234.85,234.76,7.8]
[1759781640017,4.16051971,234.84,234.76,7.8]
[1759781640215,4.16051971,234.83,234.77,7.8]
[1759781640412,4.16051971,234.82,234.77,7.8]
[1759781640608,4.16051971,234.85,234.77,7.8]
[1759781640911,1.06413909,234.88,234.79,7.8]
[1759781641113,4.15888027,234.87,234.79,7.8]
[1759781641314,4.15888027,234.86,234.79,7.8]
[1759781641517,4.15888027,234.85,234.79,7.8]
[1759781641818,3.01190858,234.89,234.81,7.8]
[1759781642018,4.15613463,234.88,234.81,7.8]
[1759781642213,1.94776949,234.89,234.82,3.8304]
[1759781642513,4.46757406,234.9,234.83,7.8]
[1759781642717,3.40343497,234.89,234.83,7.8]
[1759781642922,1.06413909,234.9,234.83,7.8]
[1759781643217,1.06413909,234.89,234.83,7.8]
[1759781643408,3.40369298,234.9,234.83,7.8]
[1759781643610,1.94776949,234.91,234.84,3.83]
[1759781643816,1.94776949,234.91,234.85,7.8]
[1759781644010,3.40199147,234.92,234.85,7.8]
[1759781644211,3.40199147,234.91,234.85,7.8]
[1759781644409,1.94776949,234.94,234.86,3.8297]
[1759781644410,3.40199147,234.9,234.86,3.8297]
[1759781644617,1.94776949,234.93,234.87,7.8]
[1759781644816,3.39207328,234.96,234.87,7.8]
[1759781645120,1.94776949,234.93,234.88,3.8294]
[1759781645418,1.94776949,234.93,234.89,7.8]
[1759781645720,1.94776949,234.95,234.9,3.8291]
[1759781645922,3.35212368,235.01,234.89,7.8]
[1759781646115,1.94776949,234.96,234.89,7.8]
[1759781646317,1.94776949,234.93,234.89,7.8]
[1759781646617,1.94776949,234.93,234.75,59.5996]
[1759781646618,1.94776949,234.93,234.83,1.94776949]
[1759781646912,3.35212368,234.96,234.88,7.8]
[1759781647115,1.94776949,235.01,234.9,59.5629]
[1759781647324,1.94776949,235.01,234.92,7.8]
[1759781647510,1.06372824,235.07,234.94,59.5536]
[1759781647716,1.94776949,235.05,234.95,7.8]
[1759781648020,1.94776949,235.06,234.97,7.8]
[1759781649220,1.06372824,235.09,235.01,11.6272]
[1759781649418,3.01149773,235.09,235.01,11.6272]
[1759781649818,1.06372824,235.09,235.03,3.8268]
[1759781650020,1.94776949,235.11,235.04,7.8]
[1759781650225,1.74,235.16,235.04,7.8]
[1759781650525,1.94776949,235.12,235.04,7.8]
[1759781651524,1.94776949,235.09,234.97,7.8]
[1759781651719,1.94776949,235.06,234.97,7.8]
[1759781652527,1.94776949,235.07,235.0,7.8]
[1759781654223,1.94776949,235.07,235.01,3.8272]
[1759781654430,3.01097328,235.13,235.02,7.8]
[1759781654631,1.94776949,235.13,235.03,1.94776949]
[1759781654929,1.94776949,235.13,235.04,7.8]
[1759781655721,1.94776949,235.13,235.05,3.8265]
[1759781656327,4.26423569,235.14,235.05,3.8265]
[1759781656523,1.94776949,235.13,235.05,3.8265]
[1759781657433,3.20222019,235.15,235.05,3.8265]
[1759781657733,1.94776949,235.13,235.05,3.8265]
[1759781658123,3.20222019,235.15,235.05,3.8265]
[1759781658426,1.94776949,235.13,235.05,3.8265]
[1759781659028,4.26696853,235.14,235.07,3.8263]
[1759781659229,1.94776949,235.14,235.07,3.8263]
[1759781659625,1.94776949,235.14,235.07,11.4563]
[1759781660528,1.94776949,235.14,235.09,3.826]
[1759781660728,1.94776949,235.14,235.1,7.63]
[1759781662626,6.78729434,235.15,235.09,7.63]
[1759781662829,3.01075193,235.15,235.09,7.63]
[1759781663032,5.15609007,235.15,235.09,7.63]
[1759781664237,6.21907251,235.15,235.09,7.63]
[1759781664429,5.15609007,235.15,235.09,7.63]
[1759781665242,3.20832058,235.15,235.09,7.63]
[1759781665541,4.75075193,235.16,235.09,7.63]
[1759781665736,3.68776949,235.16,235.09,7.63]
[1759781666742,1.94776949,235.16,235.12,7.63]
[1759781666937,1.94776949,235.16,235.11,3.8256]
[1759781667339,4.27689252,235.18,235.12,7.63]
[1759781667538,5.16167957,235.18,235.12,7.63]
[1759781667734,1.94776949,235.18,235.12,7.63]
[1759781667941,5.15554629,235.18,235.12,7.63]
[1759781668333,1.94776949,235.18,235.12,7.63]
[1759781669437,5.15606593,235.18,235.12,7.63]
[1759781669639,1.94776949,235.18,235.12,7.63]
[1759781669841,1.73,235.2,235.12,7.63]
[1759781669842,3.20894514,235.19,235.12,7.63]
[1759781670135,5.15671463,235.18,235.12,7.63]
[1759781670441,1.94776949,235.18,235.12,7.63]
[1759781671647,1.94776949,235.18,235.12,11.4555]
[1759781674438,1.94776949,235.15,235.07,7.63]
[1759781674640,5.15738989,235.15,235.07,7.63]
[1759781675144,1.94776949,235.15,235.08,3.826]
[1759781675450,1.94776949,235.15,235.07,7.63]
[1759781675847,5.16025736,235.15,235.07,7.63]
[1759781676554,5.16025736,235.15,235.09,3.8258]
[1759781677247,5.16025736,235.15,235.07,7.63]
[1759781678150,5.16025736,235.15,235.07,11.4562]
[1759781679557,5.16025736,235.15,235.07,7.63]
[1759781679950,1.74,235.14,235.07,7.63]
[1759781680258,1.94776949,235.09,235.0,7.86]
[1759781680846,1.94776949,235.1,235.03,7.86]
[1759781681258,5.16455963,235.1,235.03,7.86]
[1759781681457,3.21679014,235.1,235.03,7.86]
[1759781681753,4.77534443,235.15,235.03,7.86]
[1759781681952,3.21737667,235.14,235.03,7.86]
[1759781682151,3.21737667,235.13,235.03,7.86]
[1759781682349,1.94776949,235.15,235.03,7.86]
[1759781682755,6.21811643,235.15,235.05,7.86]
[1759781683059,5.15499273,235.15,235.05,7.86]
[1759781683760,5.15499273,235.15,235.08,3.826]
[1759781684159,6.21811643,235.15,235.08,3.826]
[1759781684351,8.86441561,235.15,235.08,3.826]
[1759781684557,4.27034694,235.14,235.08,3.826]
[1759781684753,3.20722324,235.13,235.09,7.86]
[1759781684957,3.20722324,235.12,235.09,7.86]
[1759781685254,5.65719237,235.15,235.09,7.86]
[1759781685463,4.95097083,235.14,235.09,7.86]
[1759781685660,6.01409453,235.14,235.09,7.86]
[1759781685857,1.74,235.13,235.02,59.5327]
[1759781686059,6.0139803,235.13,235.03,7.86]
[1759781686254,4.95097083,235.13,235.03,7.86]
[1759781686962,4.95097083,235.13,235.06,11.6863]
[1759781687360,3.21097083,235.12,235.06,11.6863]
[1759781687863,4.2739803,235.12,235.06,11.6863]
[1759781688059,3.21097083,235.12,235.06,11.6863]
[1759781688261,3.21097083,235.11,235.06,11.6863]
[1759781688464,3.21097083,235.1,235.07,7.81]
[1759781688663,3.21097083,235.09,235.07,7.81]
[1759781688862,4.78230386,235.13,235.06,11.6363]
[1759781689062,3.2192541,235.12,235.06,11.6363]
[1759781689258,3.2192541,235.11,235.06,3.8263]
[1759781689462,3.2192541,235.1,235.07,7.81]
[1759781689667,3.2192541,235.09,235.06,3.8263]
[1759781689858,3.2192541,235.08,235.07,7.81]
[1759781690059,3.2192541,235.12,235.06,11.6363]
[1759781690259,3.2192541,235.11,235.06,11.6363]
[1759781690558,1.06300947,235.12,235.06,3.8263]
[1759781690754,3.22609292,235.11,235.07,7.81]
[1759781690955,3.22609292,235.1,235.07,7.81]
[1759781691254,3.22609292,235.09,235.07,7.81]
[1759781691560,1.74,235.14,235.07,7.81]
[1759781691561,3.22609292,235.08,235.07,7.81]
[1759781691762,3.22609292,235.08,235.05,7.81]
[1759781691963,3.22609292,235.07,235.05,7.81]
[1759781692258,4.79382939,235.13,235.05,7.81]
[1759781692458,7.97327082,235.12,235.05,7.81]
[1759781692764,12.75230967,235.11,235.05,7.81]
[1759781692966,1.74,235.09,235.05,7.81]
[1759781693159,4.2424509,235.08,234.98,7.81]
[1759781693360,4.2424509,235.07,234.98,7.81]
[1759781693669,3.17944143,235.06,234.98,7.81]
[1759781693863,1.06300947,235.07,234.98,7.81]
[1759781694066,3.16843868,235.06,234.98,7.81]
[1759781694363,4.79382939,235.08,234.98,7.81]
[1759781694568,3.16882393,235.07,235.02,3.8271]
[1759781694763,3.16882393,235.06,235.03,7.81]
[1759781695062,1.06300947,235.08,235.03,7.81]
[1759781695260,3.16882393,235.07,235.03,7.81]
[1759781695460,3.16882393,235.06,235.02,3.8271]
[1759781695666,1.06300947,235.09,235.02,11.6371]
[1759781695866,3.16881119,235.08,235.02,11.6371]
[1759781696066,3.16881119,235.07,235.03,7.81]
[1759781696266,1.06300947,235.1,235.02,3.8271]
[1759781696473,3.16829421,235.09,235.02,11.6371]
[1759781696677,3.16829421,235.08,235.02,11.6371]
[1759781696974,1.74,235.06,234.99,3.8276]
[1759781697174,3.16829421,235.05,234.99,3.8276]
[1759781697377,4.90829421,235.04,234.99,11.6376]
[1759781697578,1.74,235.04,235.0,7.81]
[1759781700382,1.74,235.04,234.99,3.8276]
[1759781700572,1.74,235.04,235.0,7.81]
[1759781701077,1.74,235.05,234.97,13.33432533]
[1759781701277,3.16692378,235.04,234.97,13.33432533]
[1759781701484,3.16692378,235.04,234.96,11.638]
[1759781701782,3.16692378,235.03,234.96,11.638]
[1759781701982,3.16692378,235.02,234.96,11.638]
[1759781702177,3.16692378,235.01,234.96,11.638]
[1759781702484,1.74,235.05,234.96,3.828]
[1759781702781,3.15704492,235.04,234.96,3.828]
[1759781703184,3.15704492,235.03,234.96,3.828]
[1759781703378,3.15704492,235.02,234.96,3.828]
[1759781703579,1.74,235.05,234.96,3.828]
[1759781703779,4.89823094,235.05,234.96,3.828]
[1759781704082,3.15823094,235.04,234.96,7.81]
[1759781704289,1.06332221,235.08,234.96,7.81]
[1759781704585,4.89831607,235.07,234.96,7.81]
[1759781704778,3.15831607,235.06,234.96,7.81]
[1759781704977,3.15831607,235.05,234.96,7.81]
[1759781705187,3.15831607,235.04,234.96,7.81]
[1759781705481,1.74,235.07,234.96,7.81]
[1759781705684,4.89729579,235.07,234.98,7.81]
[1759781705985,1.74,235.04,234.98,7.81]
[1759781706785,4.89729579,235.04,234.98,7.81]
[1759781709182,8.72419579,235.04,234.94,7.81]
[1759781709387,3.03903885,235.01,234.94,7.81]
[1759781709782,6.19633464,235.01,234.94,7.81]
[1759781711088,1.74,235.0,234.94,7.81]
[1759781711288,4.89729579,235.0,234.94,7.81]
[1759781712288,8.72479579,235.0,234.94,7.81]
[1759781712584,5.5675,235.0,234.94,7.81]
[1759781712778,3.14838702,234.99,234.94,7.81]
[1759781712983,4.88838702,234.99,234.9,7.81]
[1759781713182,3.8278,234.98,234.9,7.81]
[1759781713386,3.03903885,234.97,234.9,7.81]
[1759781713984,6.86713885,234.97,234.9,7.81]
[1759781714187,8.60713885,234.97,234.9,7.81]
[1759781715393,6.96966348,234.96,234.9,7.81]
[1759781715693,3.8282,234.96,234.9,7.81]
[1759781716191,3.8284,234.95,234.9,7.81]
[1759781716396,1.74,234.94,234.9,7.81]
[1759781717092,5.5684,234.95,234.82,7.81]
[1759781717494,3.03903885,234.93,234.86,11.6397]
[1759781717994,3.03903885,234.93,234.86,7.81]
[1759781718192,3.03903885,234.89,234.82,7.76]
[1759781718791,3.03903885,234.89,234.82,11.5904]
[1759781719797,3.03903885,234.89,234.82,7.76]
[1759781721402,3.8295,234.88,234.82,7.76]
[1759781721602,3.03903885,234.89,234.82,7.76]
[1759781722200,3.03903885,234.85,234.82,7.76]
[1759781722391,4.77903885,234.85,234.82,7.76]
[1759781723793,6.86893885,234.85,234.78,7.76]
[1759781725001,3.03903885,234.85,234.78,7.76]
[1759781726002,3.03903885,234.88,234.79,3.8308]
[1759781726203,3.03903885,234.88,234.8,7.76]
[1759781726996,6.86843885,234.88,234.8,7.76]
[1759781727202,3.03903885,234.88,234.8,7.76]
[1759781727402,4.77903885,234.88,234.8,7.76]
[1759781728099,3.8297,234.87,234.8,7.76]
[1759781728299,4.77903885,234.88,234.8,7.76]
[1759781728997,3.8299,234.86,234.8,7.76]
[1759781729398,4.77903885,234.88,234.8,7.76]
[1759781730304,3.8299,234.86,234.8,7.76]
[1759781730798,5.57,234.85,234.8,7.76]
[1759781730996,5.57,234.85,234.77,7.76]
[1759781731603,1.74,234.85,234.77,7.76]
[1759781732710,3.8304,234.83,234.77,7.76]
[1759781733107,1.74,234.85,234.77,7.76]
[1759781733302,4.77903885,234.8,234.7,7.76]
[1759781733704,3.831,234.78,234.7,7.76]
[1759781735210,110.19903885,234.8,234.7,7.76]
[1759781736605,3.8315,234.76,234.7,7.76]
[1759781736802,1.74,234.77,234.7,7.76]
[1759781740410,3.12325731,234.79,234.7,7.76]
[1759781740613,36.84,234.81,234.7,7.76]
[1759781741314,3.12407145,234.8,234.7,7.76]
[1759781744117,4.18858757,234.8,234.7,7.76]
[1759781745113,3.12407145,234.8,234.71,7.35]
[1759781745510,1.74,234.86,234.71,7.35]
[1759781745711,4.77903885,234.86,234.71,3.03903885]
[1759781746010,3.13054666,234.85,234.72,7.35]
[1759781746206,4.19505485,234.85,234.75,3.8314]
[1759781746407,3.13054666,234.84,234.76,7.35]
[1759781746610,3.13054666,234.83,234.76,7.35]
[1759781746811,1.06450819,234.85,234.76,7.35]
[1759781747010,8.97513922,234.86,234.76,7.35]
[1759781747208,4.19610037,234.85,234.76,7.35]
[1759781747605,3.13159218,234.84,234.78,7.35]
[1759781747808,1.06450819,234.88,234.78,7.35]
[1759781748104,3.13238485,234.88,234.78,7.35]
[1759781748309,8.69188485,234.88,234.78,7.35]
[1759781748509,4.19689304,234.87,234.78,7.35]
[1759781748711,4.19689304,234.87,234.78,11.1809]
[1759781749016,3.13238485,234.86,234.78,11.1809]
[1759781749215,3.13238485,234.85,234.78,11.1809]
[1759781749417,2.79450819,234.88,234.78,11.1809]
[1759781749611,1.73,234.88,234.78,11.1809]
[1759781749806,5.9288241,234.88,234.78,11.1809]
[1759781750117,5.9288241,234.88,234.78,7.35]
[1759781751411,9.7583241,234.88,234.78,7.35]
[1759781751614,4.1988241,234.87,234.78,7.35]
[1759781752814,4.1988241,234.87,234.79,7.88]
[1759781753114,1.94943447,234.86,234.79,7.88]
[1759781756412,4.1988241,234.87,234.79,7.88]
[1759781756617,1.94943447,234.86,234.79,7.88]
[1759781757425,4.1988241,234.87,234.8,7.88]
[1759781757720,3.13431591,234.86,234.8,7.88]
[1759781757925,3.13431591,234.85,234.76,7.88]
[1759781758123,1.94943447,234.87,234.76,7.88]
[1759781758620,5.09965024,234.87,234.81,7.88]
[1759781758823,3.15021577,234.87,234.81,7.88]
[1759781759118,3.15021577,234.86,234.81,7.88]
[1759781759426,1.73,234.88,234.81,7.88]
[1759781760025,4.8817942,234.88,234.81,7.88]
[1759781760519,3.1517942,234.88,234.81,7.88]
[1759781760828,314.66362806,234.94,234.73,7.88]
[1759781760829,1.94943447,234.83,234.73,7.88]
[1759781761523,1.94943447,234.83,234.75,7.88]
[1759781762626,1.73,234.82,234.75,7.88]
[1759781762821,3.67943447,234.82,234.75,7.88]
[1759781763021,3.1517942,234.81,234.75,7.88]
[1759781765420,3.1517942,234.8,234.74,7.88]
[1759781765621,1.94943447,234.84,234.74,7.88]
[1759781766017,1.94943447,234.84,234.78,7.88]
[1759781770524,3.67943447,234.84,234.78,7.88]
[1759781770723,1.73,234.82,234.77,7.88]
[1759781771030,3.15586082,234.83,234.77,3.8311]
[1759781771322,3.15586082,234.82,234.78,7.88]
[1759781771530,1.94943447,234.84,234.78,7.88]
[1759781772827,3.15643438,234.85,234.78,7.88]
[1759781773024,3.15643438,234.84,234.78,7.88]
[1759781773228,3.15643438,234.83,234.77,3.8311]
[1759781773428,1.94943447,234.85,234.78,7.88]
[1759781773929,1.94943447,234.85,234.78,11.7109]
[1759781773930,5.10000445,234.85,234.78,11.7109]
[1759781774230,5.10000445,234.85,234.79,7.88]
[1759781775734,3.15056998,234.85,234.79,7.88]
[1759781775926,3.15056998,234.84,234.74,1.94943447]
[1759781776130,3.15056998,234.83,234.75,7.88]
[1759781776331,1.73,234.84,234.76,7.88]
[1759781776531,1.94943447,234.82,234.76,7.88]
[1759781777127,5.1052695,234.82,234.76,7.88]
[1759781777435,6.8352695,234.82,234.76,7.88]
[1759781777636,1.73,234.8,234.76,7.88]
[1759781777833,1.73,234.79,234.76,7.88]
[1759781778034,1.73,234.79,234.69,1.94943447]
[1759781778228,1.73,234.79,234.7,7.76]
[1759781778429,3.67943447,234.79,234.71,3.832]
[1759781778635,3.15583503,234.78,234.71,3.832]
[1759781778837,4.90583503,234.78,234.7,7.76]
[1759781779232,10.6863695,234.78,234.7,7.76]
[1759781779432,3.15583503,234.77,234.7,7.76]
[1759781781934,3.8314,234.76,234.7,7.76]
[1759781782134,3.15583503,234.75,234.65,7.76]
[1759781782635,1.94943447,234.72,234.65,7.76]
[1759781782832,1.75,234.71,234.65,7.76]
[1759781783336,4.89863756,234.71,234.65,7.76]
[1759781783529,1.75,234.71,234.65,7.76]
[1759781783733,4.89682817,234.71,234.65,7.76]
[1759781783936,3.14682817,234.71,234.65,7.76]
[1759781784237,1.75,234.75,234.65,7.76]
[1759781784639,4.84995862,234.75,234.65,7.76]
[1759781785539,1.94943447,234.72,234.65,7.76]
[1759781787036,5.04939309,234.72,234.65,7.76]
[1759781788436,3.69943447,234.69,234.54,59.6541]
[1759781788629,3.69943447,234.69,234.58,7.76]
[1759781788834,1.75,234.65,234.58,7.76]
[1759781789433,1.94943447,234.64,234.58,7.76]
[1759781790139,1.75,234.65,234.58,7.76]
[1759781790437,1.94943447,234.61,234.51,7.76]
[1759781791541,1.75,234.6,234.51,7.76]
[1759781791741,1.94943447,234.58,234.51,7.76]
[1759781793139,1.75,234.6,234.51,7.76]
[1759781793442,1.94943447,234.54,234.47,7.76]
[1759781797945,1.75,234.57,234.47,7.76]
[1759781798141,1.94943447,234.55,234.47,7.76]
[1759781799344,1.94943447,234.52,234.43,11.1666]
[1759781799744,3.69943447,234.52,234.43,11.1666]
[1759781799946,3.69943447,234.52,234.43,7.33]
[1759781800547,1.75,234.52,234.43,7.33]
[1759781800746,1.94943447,234.5,234.43,7.33]
[1759781801844,1.75,234.52,234.43,7.33]
[1759781802043,1.94943447,234.51,234.43,7.33]
[1759781802448,1.94943447,234.51,234.43,11.1667]
[1759781802848,1.94943447,234.51,234.44,7.33]
[1759781805553,1.75,234.52,234.44,7.33]
[1759781805755,1.94943447,234.5,234.44,7.33]
[1759781806448,1.94943447,234.52,234.44,7.33]
[1759781807756,1.75,234.52,234.39,7.33]
[1759781807954,1.94943447,234.5,234.42,7.33]
[1759781808558,1.94943447,234.5,234.42,3.8368]
[1759781808751,1.94943447,234.52,234.43,7.91]
[1759781809352,1.74,234.54,234.43,7.91]
[1759781809353,1.94943447,234.51,234.43,7.91]
[1759781809558,1.94943447,234.5,234.43,7.91]
[1759781810154,3.8353,234.52,234.43,7.91]
[1759781810464,1.94943447,234.5,234.43,7.91]
[1759781810854,3.8356,234.5,234.43,7.91]
[1759781811055,1.74,234.51,234.43,7.91]
[1759781811355,1.94943447,234.5,234.43,7.91]
[1759781812455,1.94943447,234.47,234.37,7.91]
[1759781813558,1.74,234.49,234.37,7.91]
[1759781813865,1.94943447,234.49,234.37,7.91]
[1759781814259,1.94943447,234.49,234.42,3.8368]
[1759781814464,1.94943447,234.49,234.43,7.91]
[1759781814856,1.74,234.53,234.46,7.91]
[1759781815061,3.05437341,234.56,234.46,7.91]
[1759781815567,3.05437341,234.56,234.46,11.7461]
[1759781816167,1.74,234.57,234.48,3.8359]
[1759781817159,3.05437341,234.58,234.49,7.91]
[1759781817359,310.38,234.66,234.46,7.91]
[1759781817565,4.79437341,234.62,234.48,7.91]
[1759781817866,4.79437341,234.62,234.49,3.8357]
[1759781818066,4.79437341,234.62,234.5,7.91]
[1759781818862,3.8338,234.61,234.5,7.91]
[1759781819062,4.79437341,234.62,234.5,7.91]
[1759781819364,3.06370583,234.61,234.5,11.7455]
[1759781819769,3.06374023,234.61,234.5,11.7455]
[1759781820268,1.74,234.6,234.5,7.91]
[1759781820570,1.74,234.57,234.42,7.91]
[1759781820764,3.8349,234.55,234.43,3.8366]
[1759781820964,3.06503768,234.54,234.44,7.91]
[1759781821170,4.79437341,234.54,234.44,7.91]
[1759781821465,3.06729545,234.53,234.44,7.91]
[1759781821671,1.74,234.58,234.44,7.91]
[1759781822173,1.74,234.58,234.47,7.91]
[1759781823261,3.05437341,234.56,234.47,7.91]
[1759781823866,3.835,234.54,234.47,7.91]
[1759781824263,3.07372224,234.53,234.47,7.91]
[1759781824668,1.74,234.51,234.47,7.91]
[1759781824869,4.81372224,234.51,234.47,7.91]
[1759781825069,6.90942224,234.5,234.47,7.91]
[1759781825266,3.07372224,234.49,234.38,7.91]
[1759781825469,3.07372224,234.49,234.39,3.8374]
[1759781825670,3.8359,234.49,234.4,7.91]
[1759781825870,3.07372224,234.48,234.4,7.91]
[1759781827880,3.07372224,234.5,234.4,7.91]
[1759781828275,3.07372224,234.49,234.4,7.91]
[1759781828473,3.07372224,234.5,234.4,7.91]
[1759781828674,3.07372224,234.49,234.4,7.91]
[1759781829478,3.07372224,234.49,234.4,11.7471]
[1759781830277,3.07372224,234.48,234.4,7.91]
[1759781830474,3.07372224,234.47,234.4,7.91]
[1759781830675,3.07372224,234.48,234.4,7.91]
[1759781830873,3.07372224,234.49,234.4,11.7472]
[1759781831072,3.07372224,234.48,234.4,11.7472]
[1759781831270,3.07372224,234.47,234.4,11.7472]
[1759781831479,3.07372224,234.49,234.4,11.7472]
[1759781831679,3.07372224,234.48,234.4,11.7472]
[1759781831976,1.74,234.46,234.31,7.91]
[1759781832171,1.74,234.46,234.32,7.91]
[1759781832172,3.07372224,234.45,234.32,7.91]
[1759781832372,3.07372224,234.44,234.32,7.91]
[1759781832672,3.07372224,234.43,234.34,7.91]
[1759781832873,3.07372224,234.42,234.34,7.91]
[1759781833070,3.07372224,234.45,234.34,7.91]
[1759781833271,3.07372224,234.44,234.34,7.91]
[1759781833477,3.07372224,234.43,234.35,3.838]
[1759781833680,3.07372224,234.42,234.36,7.91]
[1759781833977,3.07372224,234.41,234.32,7.91]
[1759781834171,3.07372224,234.45,234.32,7.91]
[1759781834378,3.07372224,234.44,234.32,7.91]
[1759781834578,3.07372224,234.43,234.32,7.91]
[1759781834782,3.07372224,234.42,234.39,7.91]
[1759781834979,3.07372224,234.45,234.39,7.91]
[1759781835171,1.74,234.46,234.38,3.8375]
[1759781835172,3.07372224,234.44,234.38,11.7475]
[1759781835378,3.07372224,234.43,234.37,7.91]
[1759781835574,3.07372224,234.42,234.37,7.91]
[1759781835773,3.07372224,234.45,234.37,7.91]
[1759781836082,3.07372224,234.44,234.37,7.91]
[1759781836275,3.07372224,234.43,234.37,7.91]
[1759781836476,3.07372224,234.45,234.37,11.7476]
[1759781836777,3.07372224,234.44,234.37,7.91]
[1759781837073,3.07372224,234.43,234.37,7.91]
[1759781837274,3.07372224,234.45,234.36,7.91]
[1759781837475,3.07372224,234.44,234.36,7.91]
[1759781837676,3.07372224,234.45,234.36,7.91]
[1759781837876,3.07372224,234.44,234.38,3.8375]